bitfinex-derivatives/quotes_ETHF0:USTF0_20250816
["timestamp","ask_amount","ask_price","bid_price","bid_amount"]
[1755306520881,1.4695,4465.0,4464.9,3.80894759]
[1755306521084,1.4695,4465.0,4464.9,24.53494759]
[1755306521481,1.4695,4465.0,4464.9,23.57534759]
[1755306521682,1.4695,4465.0,4464.9,23.32954759]
[1755306522081,0.1709,4464.5,4464.4,0.44765]
[1755306522284,0.1709,4464.5,4464.4,22.11395]
[1755306522285,1.1985,4464.5,4464.4,22.11395]
[1755306522584,0.8377,4464.5,4464.4,22.37905]
[1755306522786,0.8377,4464.5,4464.4,22.63285]
[1755306522988,3.2078,4465.1,4465.0,1.90679]
[1755306523283,4.4063,4465.1,4465.0,25.23633759]
[1755306523479,4.6773,4465.1,4465.0,25.23633759]
[1755306523884,4.6773,4465.1,4465.0,24.98253759]
[1755306524181,4.6773,4465.1,4465.0,25.23633759]
[1755306524885,0.8377,4465.6,4465.5,1.02854]
[1755306525075,1.4695,4465.6,4465.5,1.4592]
[1755306525281,1.4695,4465.6,4465.4,20.727]
[1755306525584,1.4695,4465.5,4465.4,20.727]
[1755306526175,0.3409,4465.3,4465.2,0.44757]
[1755306526393,1.4695,4465.3,4465.2,21.17457]
[1755306526678,1.4695,4465.3,4465.2,21.59277]
[1755306526882,1.4695,4465.3,4465.2,22.11487]
[1755306527183,0.5185,4465.2,4464.6,0.3593]
[1755306527485,1.4695,4464.7,4464.6,21.95313]
[1755306527682,1.4695,4464.7,4464.6,22.38103]
[1755306527879,1.4695,4464.7,4464.6,1.90683]
[1755306528085,1.4695,4464.7,4464.6,22.63483]
[1755306528377,1.4695,4464.7,4464.6,21.1462]
[1755306528583,1.4695,4464.7,4464.6,22.1678]
[1755306530287,1.4695,4464.7,4464.6,22.61543]
[1755306530489,1.1087,4464.7,4464.6,22.37463]
[1755306530686,1.4678,4464.7,4464.6,22.61543]
[1755306530891,1.4678,4464.7,4464.6,22.1678]
[1755306532190,1.4678,4464.7,4464.6,0.7793]
[1755306532390,1.0268,4464.7,4464.6,21.678]
[1755306532582,1.4602,4464.7,4464.6,22.61543]
[1755306532783,1.4602,4464.7,4464.6,22.1678]
[1755306534789,1.4602,4464.7,4464.6,1.4398]
[1755306535088,1.4602,4464.7,4464.6,22.1688]
[1755306535886,1.4602,4464.7,4464.6,1.199]
[1755306536092,1.4602,4464.7,4464.6,21.928]
[1755306536987,1.4602,4464.7,4464.6,20.729]
[1755306537383,1.4602,4464.7,4464.6,21.8071]
[1755306537588,1.4602,4464.7,4464.6,22.1682]
[1755306538583,1.4602,4464.7,4464.4,0.6101]
[1755306538584,0.2424,4464.6,4464.4,0.6101]
[1755306538787,1.1087,4464.3,4464.2,20.729]
[1755306538988,1.4515,4464.3,4464.2,21.3402]
[1755306539380,1.4515,4464.3,4464.2,21.9274]
[1755306540195,3.2078,4464.7,4464.2,21.3173]
[1755306540385,0.2424,4465.0,4464.7,0.4898]
[1755306540688,4.3002,4465.3,4465.2,1.4392]
[1755306540893,3.2078,4465.3,4465.2,24.77174759]
[1755306541791,0.503,4465.6,4465.2,24.77174759]
[1755306542088,0.17,4465.4,4465.3,1.2685]
[1755306542280,1.4515,4465.4,4465.3,1.4392]
[1755306543788,0.3428,4464.7,4464.6,0.9494]
[1755306543991,1.0924,4464.7,4464.6,22.1682]
[1755306544184,1.4515,4464.7,4464.6,22.1682]
[1755306544489,0.503,4466.0,4465.9,0.1675]
[1755306544690,1.4515,4466.0,4465.9,1.4392]
[1755306544984,0.5894,4465.1,4465.0,20.728]
[1755306545186,1.1909,4465.1,4464.9,0.249]
[1755306545387,1.0924,4465.0,4464.9,0.7808]
[1755306545689,1.4515,4464.5,4464.4,2.60354759]
[1755306545886,1.4515,4464.5,4464.4,3.80194759]
[1755306546082,0.5852,4465.0,4464.9,1.4392]
[1755306546289,0.5852,4465.0,4464.9,4.04274759]
[1755306547084,1.4515,4465.0,4464.9,2.60354759]
[1755306547391,1.4515,4465.0,4464.9,4.04274759]
[1755306548292,0.3428,4465.0,4464.9,4.04274759]
[1755306548694,0.17,4465.0,4464.9,4.04274759]
[1755306548893,1.4515,4465.0,4464.9,4.04274759]
[1755306549491,1.4515,4465.0,4464.9,3.55294759]
[1755306549693,1.4515,4465.0,4464.9,4.04274759]
[1755306550198,0.4124,4465.5,4465.4,0.3382]
[1755306550491,1.0924,4465.5,4465.4,4.04274759]
[1755306550695,1.4515,4465.5,4465.4,3.80194759]
[1755306550895,1.4515,4465.5,4465.4,4.04274759]
[1755306551895,1.0924,4465.8,4465.7,1.0781]
[1755306552096,1.0924,4465.8,4465.7,1.4392]
[1755306552300,1.4515,4465.8,4465.7,1.1984]
[1755306552895,1.0924,4465.8,4465.7,1.4392]
[1755306553297,0.2424,4466.3,4465.7,1.4392]
[1755306553500,0.5852,4466.3,4466.2,4.04274759]
[1755306553908,3.2078,4466.4,4466.2,4.04274759]
[1755306554096,3.2078,4466.4,4466.3,1.4392]
[1755306554296,4.6593,4466.4,4466.3,1.1984]
[1755306554596,4.6593,4466.4,4466.3,0.9494]
[1755306555104,4.6593,4466.4,4466.3,1.4392]
[1755306555403,4.6593,4466.4,4466.3,0.9494]
[1755306555703,4.6593,4466.4,4466.3,0.5883]
[1755306556200,4.6593,4466.4,4466.1,20.728]
[1755306556395,3.7972,4466.4,4466.1,20.728]
[1755306556596,0.5894,4466.3,4466.2,0.5883]
[1755306556797,0.5894,4466.3,4466.2,1.1984]
[1755306557199,1.4515,4466.3,4466.2,1.1984]
[1755306558300,1.4515,4466.3,4466.2,1.4392]
[1755306559006,1.4515,4466.3,4466.2,1.1984]
[1755306560208,0.5637,4466.1,4466.0,2.60354759]
[1755306560403,0.2556,4466.0,4465.2,2.60354759]
[1755306560710,1.4638,4465.1,4465.0,7.29304759]
[1755306560909,1.0721,4465.1,4465.0,28.01704759]
[1755306561307,0.5729,4465.1,4465.0,28.01704759]
[1755306562108,1.4638,4465.1,4465.0,27.12474759]
[1755306562305,1.4638,4465.1,4465.0,23.91694759]
[1755306562802,1.4638,4465.1,4465.0,24.56284759]
[1755306567214,4.2799,4465.4,4465.3,1.4817]
[1755306567414,4.6716,4465.4,4465.3,1.2353]
[1755306569315,4.6716,4465.4,4465.3,1.4817]
[1755306571910,4.2598,4465.4,4465.3,1.4817]
[1755306572110,4.6716,4465.4,4465.3,1.4817]
[1755306574813,4.2799,4466.1,4466.0,1.2353]
[1755306575117,4.6716,4466.1,4466.0,0.9819]
[1755306575319,4.6716,4466.1,4465.8,2.60354759]
[1755306575618,1.4638,4465.9,4465.8,2.60354759]
[1755306575813,0.5637,4465.5,4464.5,0.3925]
[1755306576014,1.0721,4464.6,4464.5,1.4817]
[1755306576317,1.4638,4464.6,4464.5,1.4817]
[1755306576517,2.60354759,4465.3,4464.3,23.9308]
[1755306576720,1.4638,4464.4,4464.3,23.9308]
[1755306577017,1.4638,4464.4,4464.3,24.7414]
[1755306577219,1.4638,4464.4,4464.3,21.9583]
[1755306577519,0.5637,4464.4,4464.2,2.60354759]
[1755306577717,1.4638,4464.3,4464.2,2.60354759]
[1755306577913,1.4638,4464.3,4464.2,4.08524759]
[1755306579107,3.2078,4464.7,4464.2,3.19294759]
[1755306579312,1.2174,4464.6,4464.5,1.0892]
[1755306579514,1.4638,4464.6,4464.5,1.4817]
[1755306581319,3.2078,4464.7,4464.5,1.4817]
[1755306581519,0.2556,4464.6,4464.5,1.4817]
[1755306584926,0.6445,4464.9,4464.5,1.4817]
[1755306585117,3.7715,4465.2,4465.1,0.4181]
[1755306585323,4.6716,4465.2,4465.1,0.9819]
[1755306585525,4.6716,4465.2,4465.1,0.5894]
[1755306585725,4.6716,4465.2,4464.8,0.6389]
[1755306586021,1.1465,4465.0,4464.9,0.6361]
[1755306586226,1.4638,4465.0,4464.9,1.2353]
[1755306586725,1.4638,4465.0,4464.9,1.4817]
[1755306587532,3.2078,4465.2,4464.9,1.4817]
[1755306587719,3.6125,4465.7,4465.6,0.8428]
[1755306587925,4.6716,4465.7,4465.4,0.3925]
[1755306588228,0.5637,4465.5,4465.4,0.3925]
[1755306588421,0.5744,4464.8,4464.7,21.3158]
[1755306588624,1.4748,4464.8,4464.7,21.9729]
[1755306588822,0.5744,4464.3,4464.2,0.856]
[1755306589024,1.4748,4464.3,4464.2,1.2499]
[1755306589623,1.4748,4464.3,4464.2,1.5097]
[1755306591027,0.6381,4464.6,4464.2,1.5097]
[1755306591225,4.307,4465.1,4465.0,0.5928]
[1755306591429,4.6826,4465.1,4465.0,0.9867]
[1755306591625,4.6826,4465.1,4465.0,3.85344759]
[1755306591930,4.6826,4465.1,4465.0,4.11324759]
[1755306594034,1.4748,4465.1,4465.0,4.11324759]
[1755306595236,1.0521,4465.1,4465.0,4.11324759]
[1755306595434,1.4748,4465.1,4465.0,4.11324759]
[1755306598233,0.8367,4465.1,4465.0,4.11324759]
[1755306598434,0.2623,4465.2,4465.1,1.0876]
[1755306598631,0.4315,4465.2,4465.1,1.5097]
[1755306598832,0.8542,4465.2,4465.1,1.5097]
[1755306599031,3.5372,4465.6,4465.5,0.5928]
[1755306599227,4.6826,4465.6,4465.5,4.11324759]
[1755306599532,3.2078,4465.6,4465.5,4.11324759]
[1755306599736,0.17691624,4468.1,4466.0,0.5928]
[1755306599737,3.2078,4466.1,4466.0,0.5928]
[1755306599939,3.2078,4466.1,4466.0,4.11324759]
[1755306600335,0.17691624,4468.1,4466.0,4.11324759]
[1755306600336,3.377,4466.8,4466.7,1.1158]
[1755306600535,0.8542,4467.1,4467.0,0.5928]
[1755306600734,0.5917,4467.1,4467.0,1.5097]
[1755306601037,1.4748,4467.1,4467.0,1.5097]
[1755306601238,0.2625,4466.8,4465.8,20.719]
[1755306601540,1.4748,4466.0,4465.4,7.1719588]
[1755306601736,1.4748,4465.8,4465.7,2.86030693]
[1755306601934,0.5744,4465.5,4465.4,3.2078]
[1755306602237,1.4748,4465.5,4465.4,3.2078]
[1755306602435,1.4748,4465.5,4465.4,3.3785]
[1755306602633,1.4748,4465.5,4465.4,4.1945]
[1755306602833,1.4748,4465.5,4465.4,0.9867]
[1755306603037,1.4748,4465.5,4465.4,0.5928]
[1755306604035,1.4748,4465.5,4465.0,0.2632]
[1755306604036,0.3294,4465.1,4465.0,0.2632]
[1755306604235,1.3146,4464.8,4464.7,0.4221]
[1755306604434,1.4748,4464.8,4464.7,1.2499]
[1755306604637,1.4748,4464.8,4464.7,1.5097]
[1755306605338,0.1692,4465.3,4465.2,1.5097]
[1755306605540,1.4748,4465.3,4465.2,4.11324759]
[1755306608937,1.4748,4465.3,4465.2,3.85344759]
[1755306609137,0.5917,4464.7,4464.6,2.94384759]
[1755306609337,1.4748,4464.7,4464.6,3.85344759]
[1755306609938,1.4748,4464.7,4464.6,4.11324759]
[1755306611436,1.4748,4464.7,4464.6,3.59024759]
[1755306611634,1.4748,4464.7,4464.6,4.11324759]
[1755306613332,3.2078,4465.3,4464.6,3.85344759]
[1755306613535,4.6826,4465.3,4465.2,4.11324759]
[1755306614134,4.6826,4465.3,4465.2,3.19634759]
[1755306614334,1.4748,4464.9,4464.8,23.31854759]
[1755306614538,1.4748,4464.9,4464.8,24.82824759]
[1755306614840,0.8367,4464.9,4464.8,24.82824759]
[1755306615142,1.4748,4464.9,4464.8,24.82824759]
[1755306615738,4.6826,4465.3,4465.2,0.5928]
[1755306615936,4.0445,4465.3,4465.2,4.11324759]
[1755306616135,3.6393,4465.3,4465.2,4.11324759]
[1755306617636,0.4315,4465.3,4465.2,4.11324759]
[1755306618943,0.1692,4465.3,4465.2,4.11324759]
[1755306619541,0.4322,4465.5,4465.4,0.591]
[1755306619740,0.5911,4465.5,4465.4,1.472]
[1755306619941,1.4774,4465.5,4465.4,1.472]
[1755306621635,1.0933,4465.5,4465.4,1.472]
[1755306622548,1.4774,4465.5,4465.4,1.472]
[1755306623848,1.0933,4465.5,4465.4,1.472]
[1755306624243,0.8308,4465.5,4465.4,1.472]
[1755306624546,3.2078,4466.3,4466.0,0.5821]
[1755306624846,0.5114,4467.2,4467.1,1.2202]
[1755306625043,0.5114,4467.2,4467.1,1.66758]
[1755306625251,0.9308,4467.2,4467.1,1.91938]
[1755306625442,1.5649,4467.2,4467.1,1.91938]
[1755306628949,1.5649,4467.2,4467.1,21.96438]
[1755306629448,1.5649,4467.2,4467.1,22.13578]
[1755306629637,1.5649,4467.2,4467.1,22.38758]
[1755306630141,1.5649,4467.2,4467.1,22.62738]
[1755306632745,1.5649,4467.2,4467.1,21.40408]
[1755306633751,1.1808,4467.2,4467.1,22.62738]
[1755306634243,1.5649,4467.2,4467.1,22.62738]
[1755306637052,1.1808,4467.2,4467.1,22.62738]
[1755306637352,0.6703,4467.2,4467.1,22.62738]
[1755306637651,1.5649,4467.2,4467.1,22.62738]
[1755306638055,1.5649,4467.2,4467.1,22.38758]
[1755306638454,1.5649,4467.2,4467.1,22.62738]
[1755306638950,1.5649,4467.2,4467.1,22.38758]
[1755306639150,0.1,4467.2,4467.1,22.62738]
[1755306642358,1.4649,4468.2,4468.1,1.03828]
[1755306642558,1.4649,4468.2,4468.1,24.98202759]
[1755306642853,1.4649,4468.2,4468.1,25.22182759]
[1755306643751,1.2232,4468.8,4468.7,0.591]
[1755306643954,0.5891,4468.6,4468.5,2.60354759]
[1755306644156,1.2232,4468.6,4468.5,23.30054759]
[1755306644356,1.4649,4468.6,4468.5,23.30054759]
[1755306644755,1.4649,4468.6,4468.5,23.64284759]
[1755306645056,1.4649,4468.6,4468.5,24.77254759]
[1755306645453,1.4649,4468.6,4468.5,23.30054759]
[1755306647150,0.8758,4468.5,4468.3,3.2078]
[1755306647353,1.4649,4468.4,4467.8,3.2078]
[1755306647553,1.3267,4467.9,4467.8,6.25865759]
[1755306647959,1.3267,4467.9,4467.8,6.44944759]
[1755306649055,1.3267,4467.9,4467.8,6.62364759]
[1755306649258,0.4898,4468.5,4467.8,27.15104759]
[1755306649559,1.318,4468.0,4467.8,3.2078]
[1755306649759,3.2078,4469.2,4467.8,3.2078]
[1755306649760,1.318,4467.9,4467.8,3.2078]
[1755306653562,0.249,4468.6,4467.8,4.84731]
[1755306653762,1.0591,4467.9,4467.8,5.10221]
[1755306654057,1.318,4467.9,4467.8,4.6549]
[1755306654259,1.318,4467.9,4467.8,3.4469]
[1755306654464,1.318,4467.9,4467.8,3.2078]
[1755306654759,1.318,4467.9,4467.8,3.4469]
[1755306655065,1.318,4467.9,4467.8,3.2078]
[1755306655365,1.318,4467.9,4467.8,3.4469]
[1755306655960,1.318,4467.9,4467.8,4.4]
[1755306656856,1.318,4467.9,4467.8,4.6549]
[1755306657461,1.318,4467.9,4467.8,4.4]
[1755306657765,1.318,4467.9,4467.8,3.7853]
[1755306658154,0.8317,4467.2,4467.1,3.2078]
[1755306658364,1.3182,4467.2,4467.1,3.2078]
[1755306658954,0.5728,4467.2,4467.1,4.1437]
[1755306659158,1.0725,4467.7,4467.6,0.8338]
[1755306659363,1.3182,4467.7,4467.6,1.1922]
[1755306660361,0.3238,4467.9,4467.8,0.61151]
[1755306660567,0.8136,4467.9,4467.8,1.4471]
[1755306660763,0.8136,4467.9,4467.8,4.05064759]
[1755306661759,0.5728,4467.9,4467.8,4.05064759]
[1755306662560,1.3182,4467.9,4467.8,1.1922]
[1755306662763,1.3182,4467.9,4467.8,1.4471]
[1755306662967,0.1643,4467.9,4467.8,4.05064759]
[1755306663464,0.1643,4467.9,4467.8,7.25844759]
[1755306664663,0.4133,4467.9,4467.8,7.25844759]
[1755306665262,0.1643,4467.9,4467.8,7.25844759]
[1755306665457,0.5728,4468.2,4468.1,0.5775]
[1755306665664,1.0593,4468.2,4468.1,1.4471]
[1755306665861,0.8185,4468.2,4468.1,1.4471]
[1755306666168,0.1643,4468.2,4468.1,1.4471]
[1755306666564,1.3182,4468.2,4468.1,0.4033]
[1755306666758,1.3182,4468.2,4468.1,0.2391]
[1755306666965,0.5827,4467.9,4467.8,3.8053]
[1755306667166,1.3182,4467.9,4467.8,3.8053]
[1755306667565,1.3182,4467.9,4467.8,3.9695]
[1755306667763,0.3238,4468.5,4468.4,0.3384]
[1755306667963,0.8136,4468.5,4468.4,4.05064759]
[1755306668466,1.0593,4468.5,4468.4,4.05064759]
[1755306668668,1.3182,4468.5,4468.4,4.05064759]
[1755306668869,0.8136,4468.5,4468.4,1.4471]
[1755306669067,1.0593,4468.5,4468.4,1.4471]
[1755306669268,1.3182,4468.5,4468.4,1.4471]
[1755306669868,1.32324356,4468.5,4468.4,1.4471]
[1755306670660,1.32324356,4468.5,4468.4,0.9359]
[1755306671266,1.32324356,4468.5,4468.4,1.1922]
[1755306672072,1.32324356,4468.5,4468.4,1.4471]
[1755306673866,0.16934356,4468.5,4468.4,0.9359]
[1755306674073,0.81864356,4468.5,4468.4,1.4471]
[1755306674271,1.06434356,4468.5,4468.4,1.4471]
[1755306674576,1.32324356,4468.5,4468.4,1.4471]
[1755306678873,1.32324356,4468.5,4468.4,0.9359]
[1755306679467,0.5872,4467.9,4467.8,3.2078]
[1755306679667,1.3332,4467.9,4467.8,3.8364]
[1755306680279,1.3332,4467.9,4467.8,3.2078]
[1755306680476,0.8271,4467.3,4467.2,1.1958]
[1755306680678,1.3332,4467.3,4467.2,1.1958]
[1755306681574,1.3332,4467.3,4467.2,0.9478]
[1755306681775,0.5872,4467.0,4466.9,3.2078]
[1755306681974,1.3332,4467.0,4466.9,3.2078]
[1755306683579,1.3332,4467.0,4466.9,3.8364]
[1755306683879,1.3332,4467.0,4466.9,3.4531]
[1755306684378,1.3332,4467.0,4466.9,3.8364]
[1755306684578,1.3332,4467.0,4466.9,4.4036]
[1755306685279,1.3332,4467.0,4466.9,4.1556]
[1755306685478,1.3332,4467.0,4466.9,3.4531]
[1755306685678,1.3332,4467.0,4466.9,3.2078]
[1755306686373,1.3332,4467.0,4466.9,3.6117]
[1755306686574,1.3332,4467.0,4466.9,4.4036]
[1755306687378,1.3332,4467.0,4466.9,4.6541]
[1755306689282,0.834,4467.0,4466.9,4.6541]
[1755306690083,1.0797,4467.0,4466.9,4.6541]
[1755306690486,0.834,4467.0,4466.9,4.6541]
[1755306690987,1.3332,4467.0,4466.9,4.6541]
[1755306691492,1.0875,4467.0,4466.4,2.60354759]
[1755306691785,0.9148,4466.6,4466.5,0.2453]
[1755306691986,0.5003,4466.2,4466.1,0.10075792]
[1755306692190,1.3332,4466.2,4466.1,0.10075792]
[1755306693191,1.3332,4466.2,4466.1,0.72935792]
[1755306693391,1.3332,4466.2,4466.1,0.34605792]
[1755306693598,1.3332,4466.2,4466.1,0.10075792]
[1755306694087,0.3337,4465.2,4465.1,4.6541]
[1755306694285,3.2078,4466.0,4465.2,0.83087]
[1755306694486,4.541,4466.0,4465.9,1.4463]
[1755306694685,3.2078,4466.5,4465.9,4.04984759]
[1755306694885,3.2078,4466.5,4466.4,1.063]
[1755306694886,4.0418,4466.5,4466.4,1.063]
[1755306695091,3.795,4466.5,4465.2,0.8818]
[1755306695291,0.1649,4465.3,4465.2,1.4463]
[1755306695592,0.834,4465.3,4465.2,1.4463]
[1755306695992,1.0797,4465.3,4465.2,1.4463]
[1755306696191,1.3332,4465.3,4465.2,0.5645]
[1755306696494,1.3332,4465.3,4465.2,0.9478]
[1755306696689,1.3332,4465.3,4465.2,1.4463]
[1755306696884,1.3332,4465.3,4465.1,3.2078]
[1755306697091,0.5872,4465.3,4465.2,1.4463]
[1755306697593,1.3332,4465.3,4465.2,1.4463]
[1755306698297,0.746,4465.9,4465.2,0.5645]
[1755306698495,1.3332,4465.9,4465.8,1.4463]
[1755306699288,0.1688,4465.9,4465.8,1.4463]
[1755306699491,0.834,4466.2,4466.1,0.5645]
[1755306699692,0.5736,4466.2,4466.1,1.4463]
[1755306699896,0.3337,4466.2,4466.1,1.4463]
[1755306700493,0.2604,4466.4,4466.1,1.4463]
[1755306700690,0.2604,4466.4,4466.1,0.5645]
[1755306700891,0.834,4466.4,4466.3,1.4463]
[1755306701091,1.0797,4466.4,4466.3,1.4463]
[1755306701490,0.834,4466.4,4466.3,1.4463]
[1755306701898,3.3078,4467.2,4466.6,0.44743]
[1755306702097,0.3337,4466.7,4466.6,1.4463]
[1755306703292,0.834,4466.7,4466.6,1.4463]
[1755306705291,1.0797,4466.7,4466.6,1.4463]
[1755306706300,0.834,4466.7,4466.6,1.4463]
[1755306706696,1.0797,4466.7,4466.6,1.4463]
[1755306707093,0.3337,4466.7,4466.6,1.4463]
[1755306707504,0.2457,4467.0,4466.6,1.4463]
[1755306707698,1.0797,4467.0,4466.9,0.5645]
[1755306707896,1.0797,4467.0,4466.9,1.4463]
[1755306709803,0.1652,4466.5,4466.4,0.5961]
[1755306710003,1.0753,4466.5,4466.4,0.5961]
[1755306710302,1.0753,4466.5,4466.4,1.087]
[1755306710503,1.0753,4466.5,4466.4,1.4617]
[1755306711797,1.3145,4466.5,4466.4,1.4617]
[1755306713201,1.0753,4466.5,4466.4,1.4617]
[1755306713602,0.829,4466.5,4466.4,1.4617]
[1755306714004,1.3145,4466.3,4466.2,3.2078]
[1755306715599,0.4958,4466.2,4466.0,0.4909]
[1755306715798,1.3145,4466.2,4466.1,0.5961]
[1755306716601,1.3145,4466.2,4466.1,0.4279]
[1755306717006,1.3145,4466.2,4466.1,0.258]
[1755306717207,0.5724,4465.8,4465.7,1.087]
[1755306717402,0.3332,4465.6,4465.5,3.2078]
[1755306717603,0.00504356,4468.5,4468.1,0.44728]
[1755306717805,1.46294356,4468.5,4468.4,3.2078]
[1755306718001,0.00504356,4468.5,4468.4,5.81134759]
[1755306718308,0.90524356,4468.5,4468.4,6.82314759]
[1755306718600,0.00504356,4468.5,4468.4,4.2196]
[1755306718901,3.2078,4470.0,4468.5,1.11812]
[1755306718902,0.2554,4469.2,4468.5,1.11812]
[1755306719202,0.2554,4469.2,4469.1,8.81471204]
[1755306719705,0.4206,4469.2,4469.1,8.81471204]
[1755306720302,0.2554,4469.2,4469.1,8.81471204]
[1755306720508,0.8278,4469.9,4469.8,0.4262]
[1755306720704,1.4579,4469.9,4469.8,1.0118]
[1755306720901,0.2554,4469.9,4469.8,1.0118]
[1755306721100,3.2078,4471.0,4469.6,3.2078]
[1755306721101,1.4579,4469.7,4469.6,3.2078]
[1755306721303,0.4072,4468.5,4468.4,3.2078]
[1755306721502,1.4579,4468.5,4468.4,3.4658]
[1755306721702,1.4579,4468.5,4468.4,4.0087]
[1755306722606,1.4579,4468.5,4468.4,3.2078]
[1755306724005,1.4579,4468.5,4468.4,4.2196]
[1755306724309,0.2554,4468.5,4468.4,4.2196]
[1755306725104,0.8278,4468.5,4468.4,3.2078]
[1755306725299,0.2404,4467.7,4467.5,0.2109]
[1755306725499,1.2025,4467.7,4467.3,3.2078]
[1755306725706,7.80291204,4469.3,4467.3,0.3747]
[1755306725707,0.5724,4467.4,4467.3,0.3747]
[1755306726007,1.4579,4467.4,4467.3,0.8009]
[1755306726810,1.4579,4467.4,4467.3,0.258]
[1755306727005,0.5724,4467.4,4466.9,0.3747]
[1755306727203,1.4579,4467.0,4466.9,1.0118]
[1755306727600,1.4579,4467.0,4466.9,0.8009]
[1755306728007,0.5886,4467.0,4466.9,1.0118]
[1755306728708,0.829,4467.0,4466.9,1.0118]
[1755306729608,1.0682,4467.0,4466.9,1.0118]
[1755306730005,1.4579,4467.0,4466.9,0.8009]
[1755306730706,1.4579,4467.0,4466.4,0.3747]
[1755306730901,0.8278,4466.5,4466.4,0.8009]
[1755306731210,1.4579,4466.4,4466.3,1.0118]
[1755306731505,1.4579,4466.4,4466.2,3.2078]
[1755306731709,1.4579,4466.3,4466.2,3.2078]
[1755306732006,1.0507,4466.2,4466.1,0.10075792]
[1755306732199,1.4579,4466.2,4466.1,0.10075792]
[1755306733709,1.4579,4466.2,4466.1,0.90165792]
[1755306734206,1.0682,4466.2,4466.1,0.90165792]
[1755306734408,0.2554,4466.2,4466.1,1.11255792]
[1755306734605,0.4206,4466.2,4466.1,1.11255792]
[1755306735006,1.0682,4466.2,4466.1,1.11255792]
[1755306736905,1.4579,4466.2,4466.1,1.11255792]
[1755306737406,0.2554,4466.2,4466.1,1.11255792]
[1755306737602,1.0682,4466.2,4466.1,1.11255792]
[1755306738007,1.4579,4466.2,4466.1,1.11255792]
[1755306739915,0.256,4467.1,4466.1,24.35185792]
[1755306740219,1.092,4467.1,4467.0,7.80291204]
[1755306740714,0.5743,4466.6,4466.5,7.80291204]
[1755306740913,1.4782,4466.6,4466.5,7.80291204]
[1755306741402,1.4782,4466.6,4466.5,8.04061204]
[1755306741607,1.4782,4466.6,4466.5,8.43221204]
[1755306742203,0.256,4466.1,4465.4,3.2078]
[1755306742410,1.4782,4465.5,4465.4,3.2078]
[1755306742609,0.5743,4465.0,4464.9,4.1709]
[1755306742815,1.4782,4465.0,4464.9,3.2078]
[1755306743217,0.5743,4465.0,4464.4,3.2078]
[1755306743513,0.5743,4464.5,4464.4,3.2078]
[1755306743709,1.4782,4464.5,4464.4,3.2078]
[1755306744618,1.4782,4464.5,4464.4,3.8371]
[1755306744813,1.4782,4464.5,4464.4,4.1709]
[1755306745010,1.4782,4464.5,4464.4,4.3812]
[1755306745914,0.256,4465.0,4464.4,3.7793]
[1755306746218,1.4782,4465.0,4464.9,1.1734]
[1755306746513,1.092,4464.5,4464.4,3.2078]
[1755306746714,1.4782,4464.5,4464.4,3.2078]
[1755306747913,0.4191,4464.5,4464.4,4.3812]
[1755306748504,0.256,4464.5,4464.4,4.3812]
[1755306749112,0.256,4464.5,4464.4,4.92905]
[1755306749316,0.256,4465.3,4464.8,0.1603]
[1755306749616,1.4782,4465.0,4464.9,1.1734]
[1755306751621,0.256,4465.0,4464.9,1.1734]
[1755306752014,0.256,4465.1,4465.0,1.1734]
[1755306752321,0.853,4465.1,4464.6,0.44763]
[1755306752517,0.5743,4463.5,4463.4,3.2078]
[1755306752714,0.3353,4462.8,4462.7,0.3916]
[1755306753021,1.4782,4462.8,4462.7,0.3916]
[1755306753510,0.5743,4462.2,4462.1,0.2377]
[1755306754214,1.4782,4462.2,4462.1,0.6293]
[1755306754513,1.4782,4462.2,4462.1,0.9637]
[1755306755020,0.853,4462.2,4462.1,1.1744]
[1755306755416,1.4782,4462.2,4462.1,0.9637]
[1755306755612,0.5743,4462.2,4461.7,0.2107]
[1755306755819,1.4782,4461.8,4461.7,0.9637]
[1755306756124,1.4782,4461.8,4461.7,1.1744]
[1755306756414,0.5177,4461.6,4460.7,3.5994]
[1755306756614,0.256,4461.5,4460.8,0.2107]
[1755306756818,0.256,4461.5,4460.7,3.2078]
[1755306756819,1.4782,4461.0,4460.9,0.9637]
[1755306757020,1.4782,4461.0,4460.9,0.8028]
[1755306757216,1.4782,4461.0,4460.7,3.2078]
[1755306757418,1.4782,4460.8,4460.7,3.5994]
[1755306757618,0.256,4460.8,4460.7,4.3822]
[1755306758016,1.092,4460.8,4460.7,4.3822]
[1755306758220,1.4782,4460.8,4460.7,4.3822]
[1755306759118,0.5177,4461.3,4460.8,0.3916]
[1755306759320,0.9605,4461.2,4461.1,0.2377]
[1755306759815,0.1722,4460.8,4460.7,3.8101]
[1755306760021,1.4782,4460.8,4460.7,4.3822]
[1755306760214,1.092,4460.8,4460.7,4.3822]
[1755306760620,0.256,4460.8,4460.7,4.3822]
[1755306760916,0.2617,4461.2,4460.7,3.8101]
[1755306761117,0.5177,4461.6,4461.3,0.2107]
[1755306761320,0.4191,4461.4,4461.3,0.9637]
[1755306761521,1.092,4461.4,4461.3,0.9637]
[1755306762020,1.4782,4461.4,4461.3,1.1744]
[1755306762516,0.256,4461.7,4461.6,0.5721]
[1755306762723,0.256,4461.7,4461.6,1.1744]
[1755306763221,0.256,4461.7,4461.6,1.62234]
[1755306763623,0.256,4461.7,4461.6,1.2749]
[1755306764717,0.9039,4462.1,4461.6,1.2749]
[1755306764919,1.4782,4462.1,4462.0,4.3822]
[1755306766019,0.4191,4462.1,4462.0,4.3822]